bitfinex-derivatives/quotes_BTCF0:USTF0_20250901
["timestamp","ask_amount","ask_price","bid_price","bid_amount"]
[1756688183770,0.86428,108390.0,108380.0,0.69380624]
[1756688184073,0.90929,108390.0,108380.0,0.69380624]
[1756688184264,0.88718,108390.0,108380.0,0.69380624]
[1756688184977,0.86428,108390.0,108380.0,0.69380624]
[1756688185265,1.99054133,108400.0,108380.0,0.69380624]
[1756688185473,1.96843133,108400.0,108390.0,0.69380624]
[1756688185766,2.85537133,108400.0,108390.0,0.69380624]
[1756688186070,2.87748133,108400.0,108390.0,0.69380624]
[1756688186868,1.96843133,108400.0,108390.0,0.94380624]
[1756688187074,2.83243133,108400.0,108390.0,1.21682248]
[1756688187473,2.87744133,108400.0,108390.0,0.94380624]
[1756688191976,2.87744133,108400.0,108390.0,1.21682248]
[1756688192178,2.87744133,108400.0,108390.0,0.94380624]
[1756688193876,2.01344133,108400.0,108390.0,1.21682248]
[1756688194076,2.87704133,108400.0,108390.0,1.21682248]
[1756688194275,1.99133133,108400.0,108390.0,0.96682248]
[1756688194473,0.88215133,108400.0,108390.0,0.96682248]
[1756688195170,0.88215133,108400.0,108390.0,1.05907408]
[1756688196382,0.86348,108400.0,108390.0,1.05907408]
[1756688196575,0.02211,108410.0,108390.0,1.05907408]
[1756688196880,0.04552,108410.0,108400.0,0.69453624]
[1756688197078,0.85373,108410.0,108400.0,0.69453624]
[1756688197679,0.87584,108410.0,108400.0,0.69453624]
[1756688198776,0.85373,108410.0,108400.0,0.94453624]
[1756688198982,0.83032,108410.0,108400.0,1.03677994]
[1756688199281,0.02211,108420.0,108400.0,1.00038994]
[1756688199479,0.90872,108420.0,108410.0,0.69453624]
[1756688199780,0.90872,108420.0,108410.0,0.71492518]
[1756688200576,0.88661,108420.0,108410.0,0.80716038]
[1756688200778,0.88661,108420.0,108410.0,0.71492518]
[1756688201082,0.90872,108420.0,108410.0,0.71492518]
[1756688203873,0.02341,108420.0,108410.0,0.71492518]
[1756688204079,0.9084,108420.0,108410.0,0.71492518]
[1756688204774,0.88629,108420.0,108410.0,0.71492518]
[1756688204980,0.90832,108430.0,108420.0,0.06072]
[1756688205282,0.90832,108430.0,108420.0,0.96755248]
[1756688206382,0.90832,108430.0,108420.0,0.42152]
[1756688206584,0.90832,108430.0,108420.0,0.96755248]
[1756688208189,0.88601,108430.0,108420.0,0.96755248]
[1756688208685,0.88601,108430.0,108420.0,1.05977918]
[1756688209486,0.88601,108430.0,108420.0,0.96755248]
[1756688209788,0.90812,108430.0,108420.0,0.96755248]
[1756688211484,2.85736,108440.0,108430.0,0.06072]
[1756688211688,2.85736,108440.0,108430.0,0.69453624]
[1756688212087,0.90788,108440.0,108430.0,0.69453624]
[1756688212687,0.02187224,108440.0,108430.0,0.94453624]
[1756688213093,0.04528224,108440.0,108430.0,0.94453624]
[1756688213591,0.02187224,108440.0,108430.0,0.94453624]
[1756688213799,0.02187224,108440.0,108430.0,1.01768211]
[1756688214686,0.04398224,108440.0,108430.0,1.87984211]
[1756688214890,0.04398224,108440.0,108430.0,1.88911536]
[1756688215084,0.04398224,108440.0,108430.0,1.61609912]
[1756688215296,0.04398224,108440.0,108430.0,1.88911536]
[1756688215480,0.02211,108440.0,108430.0,1.88911536]
[1756688218894,0.90772,108450.0,108440.0,0.06072]
[1756688219094,0.92957468,108450.0,108440.0,0.69453624]
[1756688219289,0.90746468,108450.0,108440.0,0.69453624]
[1756688219492,0.88405468,108450.0,108440.0,0.69453624]
[1756688219686,0.92957468,108450.0,108440.0,0.69453624]
[1756688221796,0.92957468,108450.0,108440.0,0.42152]
[1756688222096,0.92957468,108450.0,108440.0,0.69453624]
[1756688224495,0.92957468,108450.0,108440.0,0.71530252]
[1756688225695,1.17957468,108450.0,108440.0,0.40589628]
[1756688225890,1.17957468,108450.0,108440.0,0.67918252]
[1756688226100,1.45259092,108450.0,108440.0,0.02076628]
[1756688226992,0.04662,108440.0,108430.0,0.74083536]
[1756688227194,0.06847468,108440.0,108430.0,0.74083536]
[1756688227387,0.06847468,108440.0,108430.0,0.77465536]
[1756688228600,0.06847468,108440.0,108430.0,0.74083536]
[1756688228898,0.60997751,108440.0,108430.0,0.08241912]
[1756688229196,0.04662,108430.0,108420.0,0.7129023]
[1756688229400,0.92971468,108430.0,108420.0,0.6790823]
[1756688230096,1.17971468,108430.0,108420.0,0.6790823]
[1756688230296,1.45273092,108430.0,108420.0,0.3854]
[1756688230798,1.45273092,108430.0,108420.0,0.3608]
[1756688231195,1.45273092,108430.0,108420.0,0.37032778]
[1756688232497,0.04662,108420.0,108410.0,0.38118894]
[1756688232701,0.35988397,108420.0,108410.0,0.38118894]
[1756688233004,1.22096397,108420.0,108410.0,0.38118894]
[1756688233201,1.22096397,108420.0,108410.0,0.02038894]
[1756688233901,1.47096397,108420.0,108410.0,0.02038894]
[1756688234401,0.60988397,108420.0,108410.0,0.02983179]
[1756688234601,1.47092397,108420.0,108410.0,0.02983179]
[1756688235598,1.47092397,108420.0,108410.0,0.00944285]
[1756688235803,1.80961397,108420.0,108400.0,0.3608]
[1756688235994,0.04662,108410.0,108400.0,0.3854]
[1756688236302,0.90758,108410.0,108400.0,0.69223624]
[1756688237104,0.90754,108410.0,108400.0,0.69223624]
[1756688238003,0.90754,108410.0,108400.0,0.70132839]
[1756688238202,0.04662,108410.0,108400.0,0.70132839]
[1756688238406,0.90758,108410.0,108400.0,0.70132839]
[1756688241708,1.18059624,108410.0,108400.0,0.39449215]
[1756688241906,1.18047624,108410.0,108400.0,0.39449215]
[1756688242106,1.18047624,108410.0,108400.0,0.42831215]
[1756688243108,0.90746,108410.0,108400.0,0.42831215]
[1756688243314,0.90738,108410.0,108400.0,0.42831215]
[1756688244308,1.18039624,108410.0,108400.0,0.42831215]
[1756688245312,0.9073,108410.0,108400.0,0.42831215]
[1756688247604,0.90714,108410.0,108400.0,0.70132839]
[1756688248404,0.04662,108410.0,108400.0,0.70132839]
[1756688248604,0.90706,108410.0,108400.0,0.70132839]
[1756688249809,0.90706,108410.0,108400.0,0.42831215]
[1756688250212,0.90706,108410.0,108400.0,0.70132839]
[1756688250607,0.90706,108410.0,108400.0,0.42831215]
[1756688250916,0.90706,108410.0,108400.0,0.70132839]
[1756688251411,0.90706,108410.0,108400.0,0.42831215]
[1756688252304,0.90706,108410.0,108390.0,0.39493]
[1756688252305,1.18007624,108410.0,108390.0,0.39493]
[1756688252505,0.31815624,108400.0,108390.0,0.41747]
[1756688252706,0.31815624,108400.0,108390.0,0.3608]
[1756688252906,0.02211,108390.0,108380.0,0.41747]
[1756688253111,1.17839624,108390.0,108380.0,0.41747]
[1756688253313,1.17839624,108390.0,108380.0,0.38334]
[1756688253516,1.17839624,108390.0,108380.0,0.41747]
[1756688253806,1.17839624,108390.0,108380.0,0.38334]
[1756688254215,1.17839624,108390.0,108380.0,0.39264494]
[1756688254706,0.31815624,108390.0,108380.0,0.39264494]
[1756688254914,1.17835624,108390.0,108380.0,0.39264494]
[1756688257014,1.42835624,108390.0,108380.0,0.3608]
[1756688257315,0.04514,108380.0,108370.0,0.48951963]
[1756688257516,0.31815624,108380.0,108370.0,0.46453547]
[1756688257813,1.17823624,108380.0,108370.0,0.46453547]
[1756688258217,1.2001133,108380.0,108370.0,0.46453547]
[1756688258517,1.2001133,108380.0,108370.0,0.36994584]
[1756688258716,1.2001133,108380.0,108370.0,0.39248584]
[1756688259518,1.2001133,108380.0,108370.0,0.39709584]
[1756688259915,1.8109133,108380.0,108370.0,0.00461]
[1756688260219,1.8108333,108380.0,108370.0,0.00461]
[1756688264521,1.8107933,108380.0,108370.0,0.00461]
[1756688264819,0.9508333,108380.0,108370.0,0.00461]
[1756688265021,1.8107133,108380.0,108370.0,0.02715]
[1756688265320,1.1999133,108380.0,108370.0,0.06128]
[1756688266918,0.06701706,108380.0,108370.0,0.69509624]
[1756688267120,0.88167706,108380.0,108370.0,0.67208]
[1756688267318,1.1998333,108380.0,108370.0,0.42208]
[1756688267515,1.1998333,108380.0,108370.0,0.02715]
[1756688268412,1.8106333,108380.0,108370.0,0.00461]
[1756688269019,1.81060141,108380.0,108370.0,0.00461]
[1756688270621,0.04053,108360.0,108350.0,0.41747]
[1756688270821,1.21367628,108360.0,108350.0,0.41747]
[1756688271217,1.21367628,108360.0,108350.0,0.42692988]
[1756688272725,0.94066004,108360.0,108350.0,0.42692988]
[1756688273724,1.21367628,108360.0,108350.0,0.42692988]
[1756688274418,1.57447628,108360.0,108340.0,0.47161696]
[1756688274615,0.31354624,108350.0,108340.0,0.49415696]
[1756688274821,0.33539141,108350.0,108340.0,0.49415696]
[1756688275219,0.33539141,108350.0,108340.0,0.42208]
[1756688275423,0.69619141,108350.0,108340.0,0.02715]
[1756688275616,0.69619141,108350.0,108340.0,0.00461]
[1756688276014,0.04053,108340.0,108330.0,0.41747]
[1756688276219,1.19499141,108340.0,108330.0,0.42668507]
[1756688276612,1.28277517,108340.0,108330.0,0.06588507]
[1756688276916,0.42317517,108340.0,108330.0,0.06588507]
[1756688277116,0.06237517,108340.0,108330.0,0.06588507]
[1756688277327,1.19499141,108340.0,108330.0,0.06588507]
[1756688277632,0.06237517,108340.0,108330.0,0.06588507]
[1756688277818,0.92197517,108340.0,108330.0,0.42668507]
[1756688279920,1.28277517,108340.0,108330.0,0.02254]
[1756688280120,1.53829141,108340.0,108320.0,0.46863755]
[1756688280425,0.90009,108330.0,108320.0,0.49117755]
[1756688280626,0.92193517,108330.0,108320.0,0.49117755]
[1756688281626,0.92193517,108330.0,108320.0,0.50064422]
[1756688282021,0.06237517,108330.0,108320.0,0.50064422]
[1756688282228,0.92193517,108330.0,108320.0,0.77366046]
[1756688283027,0.02184517,108330.0,108320.0,0.77366046]
[1756688283219,0.80444517,108330.0,108320.0,1.02366046]
[1756688284119,0.80444517,108330.0,108320.0,0.75064422]
[1756688284317,0.84485517,108330.0,108320.0,0.50064422]
[1756688284522,0.84485517,108330.0,108320.0,0.77366046]
[1756688285129,0.06225517,108330.0,108320.0,0.77366046]
[1756688285324,0.92177517,108330.0,108320.0,0.77366046]
[1756688285929,1.19479141,108330.0,108320.0,0.50064422]
[1756688286332,1.19479141,108330.0,108320.0,0.42693667]
[1756688286628,2.07860765,108330.0,108310.0,0.39594]
[1756688286833,0.67422624,108320.0,108310.0,0.02386]
[1756688287033,0.353995,108320.0,108310.0,0.02386]
[1756688287333,0.04041,108310.0,108300.0,0.4946142]
[1756688287531,1.19479141,108310.0,108300.0,0.4946142]
[1756688287733,0.06225517,108310.0,108300.0,0.76763044]
[1756688287931,0.92173517,108310.0,108300.0,0.77701613]
[1756688288726,0.06225517,108310.0,108300.0,0.77701613]
[1756688288933,0.44232517,108310.0,108300.0,0.77701613]
[1756688289231,0.48273517,108310.0,108300.0,0.77701613]
[1756688290027,0.04475517,108310.0,108300.0,0.77701613]
[1756688290234,0.40016,108310.0,108300.0,0.77701613]
[1756688290531,0.42307,108310.0,108300.0,0.77701613]
[1756688290732,0.44057,108310.0,108300.0,0.50399989]
[1756688290921,0.44057,108310.0,108300.0,0.77701613]
[1756688291228,0.02291,108310.0,108300.0,0.77701613]
[1756688291433,0.88239,108310.0,108300.0,0.77701613]
[1756688291933,0.89989,108310.0,108300.0,0.77701613]
[1756688292634,0.88239,108310.0,108300.0,0.77701613]
[1756688292832,0.04163359,108320.0,108310.0,0.059]
[1756688293030,0.92299836,108320.0,108310.0,0.69281624]
[1756688293226,0.94049836,108320.0,108310.0,0.69281624]
[1756688296123,0.08101836,108320.0,108310.0,0.69281624]
[1756688296329,0.94049836,108320.0,108310.0,0.69281624]
[1756688296826,0.94049836,108320.0,108310.0,0.4198]
[1756688297135,0.04041,108310.0,108300.0,0.77701613]
[1756688297436,0.06230783,108310.0,108300.0,0.50399989]
[1756688298226,0.06230783,108310.0,108300.0,0.77701613]
[1756688301337,0.04480783,108310.0,108300.0,0.77701613]
[1756688301636,0.02189783,108310.0,108300.0,1.30003237]
[1756688301830,0.44925783,108310.0,108300.0,1.30003237]
[1756688302640,0.01872359,108320.0,108300.0,1.28581607]
[1756688302937,0.71384359,108320.0,108310.0,0.69281624]
[1756688303330,0.01872359,108320.0,108310.0,0.69281624]
[1756688303530,0.87812359,108320.0,108310.0,0.69281624]
[1756688305039,0.01872359,108320.0,108310.0,0.69281624]
[1756688306333,0.01872359,108320.0,108310.0,0.94281624]
[1756688306934,0.65824,108340.0,108330.0,0.059]
[1756688307135,0.10262556,108350.0,108330.0,0.93069248]
[1756688307344,0.12553556,108350.0,108340.0,0.69281624]
[1756688307535,0.98489556,108350.0,108340.0,0.69281624]
[1756688308439,1.18523522,108350.0,108340.0,0.69281624]
[1756688310033,1.18523522,108350.0,108340.0,0.4198]
[1756688310233,1.15099522,108350.0,108340.0,0.69281624]
[1756688310435,0.01876522,108350.0,108340.0,0.69281624]
[1756688310740,0.87804522,108350.0,108340.0,0.69281624]
[1756688311142,0.90095522,108350.0,108340.0,0.69281624]
[1756688311641,0.01876522,108350.0,108340.0,0.69281624]
[1756688311939,0.93515522,108350.0,108340.0,0.69281624]
[1756688312640,2.02842487,108360.0,108350.0,0.03503]
[1756688312831,2.88862487,108360.0,108350.0,0.69198624]
[1756688313335,2.85209487,108360.0,108350.0,0.69198624]
[1756688313635,1.33981624,108380.0,108350.0,0.69198624]
[1756688313636,0.05994,108380.0,108370.0,0.05817]
[1756688313841,0.92258,108380.0,108370.0,0.69198624]
[1756688314439,0.88605,108380.0,108370.0,0.69198624]
[1756688314641,0.90785544,108380.0,108370.0,0.69198624]
[1756688314830,0.94438544,108380.0,108370.0,0.41897]
[1756688315036,0.94438544,108380.0,108370.0,0.69198624]
[1756688315439,0.92258,108380.0,108370.0,0.69198624]
[1756688316342,0.92258,108380.0,108370.0,0.8540709]
[1756688316536,0.02341,108380.0,108370.0,1.05278624]
[1756688316737,0.86232,108380.0,108370.0,1.05278624]
[1756688316937,0.03653,108390.0,108370.0,1.26775624]
[1756688317147,0.86228,108380.0,108370.0,0.41897]
[1756688317345,0.86228,108380.0,108370.0,0.77977]
[1756688317744,0.88569,108380.0,108370.0,0.77977]
[1756688317941,0.86228,108380.0,108370.0,0.78888004]
[1756688318238,0.86228,108380.0,108370.0,1.06189628]
[1756688319442,0.89881,108380.0,108370.0,1.06189628]
[1756688319646,0.92222,108380.0,108370.0,0.78888004]
[1756688319848,0.92222,108380.0,108370.0,1.06189628]
[1756688320342,0.92222,108380.0,108370.0,0.78888004]
[1756688320542,0.92222,108380.0,108370.0,0.86357211]
[1756688320749,0.92222,108380.0,108370.0,1.13658835]
[1756688321747,0.88569,108380.0,108370.0,1.13658835]
[1756688322147,0.05994,108380.0,108370.0,1.13658835]
[1756688322351,0.92282,108380.0,108370.0,1.13658835]
[1756688323144,0.9229,108380.0,108370.0,1.13658835]
[1756688323444,0.05994,108380.0,108370.0,1.13658835]
[1756688323646,0.92262,108380.0,108370.0,1.13658835]
[1756688324343,0.05994,108380.0,108370.0,1.13658835]
[1756688324546,0.9255,108380.0,108370.0,1.13658835]
[1756688325648,0.9255,108380.0,108370.0,0.86357211]
[1756688325855,0.9255,108380.0,108370.0,1.10155835]
[1756688326049,1.1755,108380.0,108370.0,0.50277211]
[1756688326457,1.1755,108380.0,108370.0,0.77578835]
[1756688327253,1.44851624,108380.0,108370.0,0.36991004]
[1756688327454,1.44851624,108380.0,108370.0,0.00911004]
[1756688327655,1.44851624,108380.0,108360.0,0.3608]
[1756688327854,0.05994,108370.0,108360.0,0.69198624]
[1756688328348,0.05994,108370.0,108360.0,0.70136577]
[1756688328844,0.92502,108370.0,108360.0,0.70136577]
[1756688329654,0.92502,108370.0,108360.0,0.42834953]
[1756688329854,0.92502,108370.0,108360.0,0.70136577]
[1756688330450,0.8644,108370.0,108360.0,0.66633577]
[1756688330649,0.8644,108370.0,108360.0,0.70136577]
[1756688330851,0.92434,108370.0,108360.0,0.70136577]
[1756688331858,0.03653,108380.0,108360.0,0.93935201]
[1756688332049,0.08167779,108380.0,108370.0,0.69198624]
[1756688332249,0.94575779,108380.0,108370.0,0.69198624]
[1756688332453,0.94575779,108380.0,108370.0,0.41897]
[1756688332751,0.94575779,108380.0,108370.0,0.69198624]
[1756688337258,0.08167779,108380.0,108370.0,0.69198624]
[1756688337458,0.94495779,108380.0,108370.0,0.69198624]
[1756688337653,0.08167779,108380.0,108370.0,0.69198624]
[1756688337853,0.04514779,108380.0,108370.0,0.69198624]
[1756688338161,0.90770779,108380.0,108370.0,0.69198624]
[1756688338863,0.94423779,108380.0,108370.0,0.69198624]
[1756688344574,0.94423779,108380.0,108370.0,0.41897]
[1756688344871,0.94423779,108380.0,108370.0,0.69198624]
[1756688352782,0.99385813,108380.0,108370.0,0.69198624]
[1756688354490,0.99077813,108380.0,108370.0,0.69198624]
[1756688357889,0.99077813,108380.0,108370.0,0.41897]
[1756688358193,0.99077813,108380.0,108370.0,0.69329624]
[1756688360288,1.51379437,108380.0,108370.0,0.3608]
[1756688360493,0.05918,108370.0,108360.0,0.03315953]
[1756688360695,0.40377638,108370.0,108360.0,0.39395953]
[1756688361195,0.08091779,108370.0,108360.0,0.39395953]
[1756688362692,0.33091779,108370.0,108360.0,0.39395953]
[1756688362993,0.05918,108350.0,108340.0,0.71410221]
[1756688363199,0.91846,108350.0,108340.0,0.71410221]
[1756688363697,1.21333685,108350.0,108340.0,0.69393624]
[1756688363897,0.94032061,108350.0,108340.0,0.70304452]
[1756688364996,0.94032061,108350.0,108340.0,0.43002828]
[1756688365197,0.94032061,108350.0,108340.0,0.39368828]
[1756688365995,1.82413685,108350.0,108340.0,0.00910828]
[1756688366203,1.82413685,108350.0,108320.0,0.42092]
[1756688366204,0.02402,108330.0,108320.0,0.42092]
[1756688366396,0.91846,108330.0,108320.0,0.43008396]
[1756688366599,0.91846,108330.0,108320.0,0.7031002]
[1756688366898,1.21330339,108330.0,108320.0,0.00916396]
[1756688367201,1.19147624,108330.0,108320.0,0.02378]
[1756688368499,0.33219624,108330.0,108320.0,0.02378]
[1756688368700,0.03516,108320.0,108310.0,0.69393624]
[1756688368998,0.05918,108320.0,108310.0,0.7678426]
[1756688370005,0.91858,108320.0,108310.0,0.77725087]
[1756688370201,1.21004149,108320.0,108310.0,0.39398827]
[1756688372601,1.46004149,108320.0,108310.0,0.3608]
[1756688372806,1.46004149,108320.0,108300.0,0.3608]
[1756688372807,1.78568149,108320.0,108300.0,0.3608]
[1756688373003,1.19359624,108310.0,108300.0,0.41805]
[1756688373301,1.19359624,108310.0,108300.0,0.42737471]
[1756688373302,0.06114,108310.0,108300.0,0.42737471]
[1756688373611,0.92062,108310.0,108300.0,0.42737471]
[1756688373905,0.92058,108310.0,108300.0,0.42737471]
[1756688375598,0.92058,108310.0,108300.0,0.70039095]
[1756688375800,0.69495624,108310.0,108300.0,0.03244471]
[1756688376007,1.19363624,108310.0,108300.0,0.03244471]
[1756688376500,0.33415624,108310.0,108300.0,0.03244471]
[1756688376702,0.33415624,108310.0,108300.0,0.06657471]
[1756688376907,0.92062,108310.0,108300.0,0.70039095]
[1756688377406,0.99335958,108310.0,108300.0,0.70039095]
[1756688378911,0.99335958,108310.0,108300.0,0.42737471]
[1756688379102,0.99335958,108310.0,108300.0,0.70039095]
[1756688379407,0.99339958,108310.0,108300.0,0.70039095]
[1756688379605,0.03709,108300.0,108290.0,0.41805]
[1756688379810,0.33415624,108300.0,108290.0,0.38392]
[1756688380010,0.33415624,108300.0,108290.0,0.02312]
[1756688381704,0.69495624,108300.0,108290.0,0.02312]
[1756688382209,0.69495624,108300.0,108280.0,0.66794624]
[1756688382512,0.33415624,108290.0,108280.0,0.38392]
[1756688382706,1.19367624,108290.0,108280.0,0.41805]
[1756688382911,1.19367624,108290.0,108280.0,0.42728602]
[1756688383207,0.33415624,108290.0,108280.0,0.42728602]
[1756688383510,0.92066,108290.0,108280.0,0.42728602]
[1756688384211,0.92066,108290.0,108280.0,0.70030226]
[1756688384506,0.07981309,108300.0,108290.0,0.05725]
[1756688384706,0.93933309,108300.0,108290.0,0.69106624]
[1756688384913,0.07981309,108300.0,108290.0,0.69106624]
[1756688385107,0.93933309,108300.0,108290.0,0.69106624]
[1756688385508,0.93937309,108300.0,108290.0,0.69106624]
[1756688386910,0.93937309,108300.0,108290.0,0.33026624]
[1756688387110,1.21238933,108300.0,108290.0,0.05725]
[1756688387302,1.21238933,108300.0,108290.0,0.02312]
[1756688387507,0.06114,108290.0,108280.0,0.70030226]
[1756688390114,0.85952,108290.0,108280.0,0.70030226]
[1756688390617,0.88357,108290.0,108280.0,0.70030226]
[1756688390820,0.92066,108290.0,108280.0,0.70030226]
[1756688392313,0.9424514,108290.0,108280.0,0.70030226]
[1756688394910,0.0458414,108290.0,108280.0,0.70030226]
[1756688395117,0.9053214,108290.0,108280.0,0.70030226]
[1756688395618,0.9424114,108290.0,108280.0,0.70030226]
[1756688397618,0.9424114,108290.0,108280.0,0.42728602]
[1756688398019,0.9424114,108290.0,108280.0,0.70030226]
[1756688400521,0.9052414,108290.0,108280.0,0.70030226]
[1756688401019,0.0217914,108290.0,108280.0,0.70030226]
[1756688401220,0.0217914,108290.0,108280.0,0.95030226]
[1756688402320,0.85936,108300.0,108280.0,0.91617226]
[1756688402625,0.91864,108300.0,108290.0,0.0583]
[1756688402829,0.03519,108290.0,108280.0,0.70135226]
[1756688403029,0.02409,108290.0,108280.0,0.70135226]
[1756688403329,0.91864,108300.0,108290.0,0.0583]
[1756688403517,1.51726624,108300.0,108280.0,0.37003602]
[1756688403722,0.05928,108290.0,108280.0,0.39335602]
[1756688404021,0.33229624,108290.0,108280.0,0.39335602]
[1756688404221,0.38213859,108290.0,108280.0,0.39335602]
[1756688404419,0.33229624,108290.0,108280.0,0.39335602]
[1756688405129,0.58229624,108290.0,108280.0,0.39335602]
[1756688405330,0.99293859,108290.0,108280.0,0.00923602]
[1756688405625,0.03519,108280.0,108270.0,0.39578]
[1756688405830,0.9186,108280.0,108270.0,0.4191]
[1756688406130,0.9186,108280.0,108270.0,0.4282342]
[1756688406528,1.44161624,108280.0,108270.0,0.3932542]
[1756688406728,1.44161624,108280.0,108270.0,0.0091342]
[1756688406930,1.85225859,108280.0,108260.0,0.3608]
[1756688407231,0.33229624,108270.0,108260.0,0.38412]
[1756688407623,0.33229624,108270.0,108260.0,0.4191]
[1756688407934,0.05928,108270.0,108260.0,0.4191]
[1756688408430,0.05928,108270.0,108260.0,0.42824626]
[1756688409531,0.91864,108270.0,108260.0,0.42824626]
[1756688409732,0.05928,108270.0,108260.0,0.42824626]
[1756688409933,0.9186,108270.0,108260.0,0.42824626]
[1756688410728,0.88341,108270.0,108260.0,0.42824626]
[1756688411236,0.9186,108270.0,108260.0,0.42824626]
[1756688412035,1.8716866,108270.0,108260.0,0.00914626]
[1756688412238,1.8716866,108270.0,108260.0,0.02332]
[1756688412424,1.1686,108270.0,108260.0,0.02332]
[1756688413528,0.05928,108260.0,108250.0,0.4191]
[1756688414334,0.08098763,108260.0,108250.0,0.4191]
[1756688415237,0.08098763,108260.0,108250.0,0.42827642]
[1756688416937,0.42327423,108260.0,108250.0,0.00917642]
[1756688417234,0.42327423,108260.0,108250.0,0.0583]
[1756688417235,0.08098763,108260.0,108250.0,0.0583]
[1756688417838,0.08098763,108260.0,108250.0,0.02332]
[1756688418134,0.08098763,108260.0,108250.0,0.42847686]
[1756688418434,0.94034763,108260.0,108250.0,0.06767686]
[1756688418637,0.94034763,108260.0,108250.0,0.03269686]
[1756688418830,1.28263423,108260.0,108250.0,0.00937686]
[1756688419031,0.02409,108250.0,108230.0,0.3608]
[1756688419235,0.91864,108240.0,108230.0,0.4191]
[1756688419436,0.91864,108240.0,108230.0,0.42821537]
[1756688420429,1.2609266,108240.0,108230.0,0.39323537]
[1756688420629,1.2609266,108240.0,108230.0,0.00911537]
[1756688420831,1.33380178,108240.0,108220.0,0.39578]
[1756688421039,0.05928,108230.0,108220.0,0.4191]
[1756688421739,0.05928,108230.0,108220.0,0.42822372]
[1756688422440,0.91868,108230.0,108220.0,0.42822372]
[1756688424043,0.05928,108230.0,108220.0,0.42822372]
[1756688424341,0.91868,108230.0,108220.0,0.42822372]
[1756688425040,0.05928,108230.0,108220.0,0.42822372]
[1756688425340,0.91872,108230.0,108220.0,0.42822372]
[1756688426635,0.05928,108230.0,108220.0,0.77051032]
[1756688426840,0.88353,108230.0,108220.0,0.77051032]
[1756688427037,0.91872,108230.0,108220.0,0.77051032]
[1756688427241,0.02409,108230.0,108220.0,0.77051032]
[1756688427436,0.88353,108230.0,108220.0,0.77051032]
[1756688427835,0.91872,108230.0,108220.0,0.77051032]
[1756688428035,0.91872,108230.0,108220.0,0.70219837]
[1756688428338,0.85944,108230.0,108220.0,0.70219837]
[1756688428540,0.91872,108230.0,108220.0,0.70219837]
[1756688428940,0.91872,108230.0,108220.0,0.42822372]
[1756688429142,0.91872,108230.0,108220.0,0.70219837]
[1756688429841,0.09696518,108240.0,108230.0,0.0583]
[1756688430038,0.07805965,108250.0,108240.0,0.0583]
[1756688430243,0.93749965,108250.0,108240.0,0.69307465]
[1756688430443,0.93749965,108250.0,108240.0,0.4191]
[1756688430843,0.93749965,108250.0,108240.0,0.69307465]
[1756688431745,1.2114743,108250.0,108240.0,0.4191]
[1756688432746,0.06194,108240.0,108230.0,0.42093]
[1756688433144,0.33591465,108240.0,108230.0,0.42093]
[1756688433741,0.92138,108240.0,108230.0,0.42093]
[1756688433943,0.99360484,108240.0,108230.0,0.42093]
[1756688434440,0.99360484,108240.0,108230.0,0.69490465]
[1756688434640,0.92138,108240.0,108230.0,0.69490465]
[1756688434836,0.06194,108240.0,108230.0,0.69490465]
[1756688435041,0.08071965,108250.0,108240.0,0.06013]
[1756688435242,0.96184734,108250.0,108240.0,0.06013]
[1756688435946,1.23582199,108250.0,108240.0,0.06013]
[1756688436350,0.10240734,108250.0,108240.0,0.69490465]
[1756688436548,0.96184734,108250.0,108240.0,0.69490465]
[1756688436737,0.06514734,108250.0,108240.0,0.69490465]
[1756688437141,0.92454734,108250.0,108240.0,0.69490465]
[1756688437343,1.2140943,108250.0,108240.0,0.42093]
[1756688437544,1.4640943,108250.0,108240.0,0.02384]
[1756688437744,0.06194,108240.0,108230.0,0.42093]
[1756688438061,0.06194,108240.0,108230.0,0.38464]
[1756688438245,0.35762052,108240.0,108230.0,0.38464]
[1756688438444,0.35762052,108240.0,108230.0,0.3608]
[1756688438940,0.35762052,108240.0,108230.0,0.42093]
[1756688439140,0.90842587,108240.0,108230.0,0.69490465]
[1756688439654,0.90842587,108240.0,108230.0,0.94490465]
[1756688439655,0.90906587,108240.0,108230.0,0.94490465]
[1756688440152,0.94632587,108240.0,108230.0,0.94490465]
[1756688440847,0.88438587,108240.0,108230.0,0.94490465]
[1756688441052,0.90906587,108240.0,108230.0,0.94490465]
[1756688441456,0.88438587,108240.0,108230.0,0.94490465]
[1756688441951,0.90906587,108240.0,108230.0,0.94490465]
[1756688442151,0.88438587,108240.0,108230.0,0.94490465]
[1756688442346,0.88442587,108240.0,108230.0,0.94490465]
[1756688442551,0.02170587,108240.0,108230.0,0.94490465]
[1756688442747,0.88450587,108240.0,108230.0,0.94490465]
[1756688444145,0.02170587,108240.0,108230.0,1.03729285]
[1756688444352,0.94644587,108240.0,108230.0,0.94490465]
[1756688444841,0.94644587,108240.0,108230.0,0.42093]
[1756688445044,0.94644587,108240.0,108230.0,0.69490465]
[1756688446256,0.90918587,108240.0,108230.0,0.69490465]
[1756688446454,0.04638587,108240.0,108230.0,0.94490465]
[1756688446652,0.90866587,108240.0,108230.0,0.94490465]
[1756688447251,0.88398587,108240.0,108230.0,0.94490465]
[1756688447561,0.02170587,108240.0,108230.0,1.3112676]
[1756688447751,0.64441965,108250.0,108240.0,0.06013]
[1756688447951,0.02175257,108250.0,108240.0,1.061259]
[1756688448257,0.06194,108240.0,108230.0,0.0202093]
[1756688448457,1.02134722,108240.0,108230.0,0.0202093]
[1756688448753,1.02134722,108240.0,108230.0,0.0803393]
[1756688448955,1.02134722,108240.0,108230.0,0.0440493]
[1756688449158,1.02134722,108240.0,108230.0,0.0202093]
[1756688449347,1.38214722,108240.0,108230.0,0.0202093]
[1756688451357,0.71846722,108240.0,108230.0,0.0440493]
[1756688451552,1.58071552,108240.0,108230.0,0.0202093]
[1756688451954,1.64923919,108240.0,108230.0,0.0202093]
[1756688452445,1.28843919,108240.0,108230.0,0.0202093]
[1756688452647,0.08370087,108240.0,108230.0,0.4048493]
[1756688452850,0.94594087,108240.0,108230.0,0.4048493]
[1756688453058,0.94594087,108240.0,108230.0,0.0440493]
[1756688453359,0.94594087,108240.0,108230.0,0.4048493]
[1756688453556,1.28843919,108240.0,108230.0,0.4048493]
[1756688453853,0.94594087,108240.0,108230.0,0.4411393]
[1756688454063,0.02176087,108240.0,108230.0,1.03363762]
[1756688454354,0.58958,108250.0,108240.0,0.03629]
[1756688454552,0.61133282,108250.0,108240.0,0.76342832]
[1756688455354,0.61133282,108250.0,108240.0,0.42093]
[1756688455858,0.61133282,108250.0,108240.0,0.76342832]
[1756688456261,0.02175282,108250.0,108240.0,1.01342832]
[1756688456465,0.88351282,108250.0,108240.0,1.01342832]
[1756688456856,0.92077282,108250.0,108240.0,1.01342832]